bitfinex/quotes_SOLUSD_20251119
["timestamp","ask_amount","ask_price","bid_price","bid_amount"]
[1763590055592,0.69,135.23,135.18,12.28858209]
[1763590055797,5.60740445,135.25,135.2,9.78882769]
[1763590056024,5.60740445,135.24,135.21,1.76]
[1763590056233,5.60740445,135.23,135.21,1.76]
[1763590056413,0.69,135.23,135.21,1.76]
[1763590056599,0.69,135.22,135.21,11.54882769]
[1763590056805,4.91740445,135.23,135.21,11.54882769]
[1763590057031,5.60740445,135.23,135.22,1.76]
[1763590057530,0.69,135.23,135.22,1.76]
[1763590057833,5.61275129,135.23,135.22,1.76]
[1763590058057,18.12096,135.21,135.2,1.76]
[1763590058415,18.81096,135.21,135.2,1.76]
[1763590058822,0.69,135.21,135.2,1.76]
[1763590060307,4.91930288,135.22,135.2,1.76]
[1763590060518,0.89,135.27,135.21,10.43882769]
[1763590060703,0.69,135.26,135.21,72.13882769]
[1763590062210,5.61048216,135.26,135.21,72.13882769]
[1763590062415,0.69,135.25,135.21,72.13882769]
[1763590064233,0.69,135.26,135.21,72.13882769]
[1763590064614,0.2,135.27,135.23,9.78882769]
[1763590064811,0.2,135.27,135.25,9.78882769]
[1763590065017,0.89,135.27,135.25,9.78882769]
[1763590066506,0.69,135.26,135.25,9.78882769]
[1763590066913,0.69,135.26,135.24,61.7]
[1763590067140,18.81096,135.26,135.24,61.7]
[1763590067523,0.69,135.25,135.24,61.7]
[1763590068213,0.69,135.25,135.23,1.76]
[1763590068941,5.46292644,135.24,135.23,1.76]
[1763590069345,6.15292644,135.24,135.23,1.76]
[1763590069555,0.69,135.24,135.23,1.76]
[1763590069716,18.12096,135.22,135.21,61.7]
[1763590070122,24.26610328,135.22,135.21,61.7]
[1763590070746,5.46514328,135.22,135.21,61.7]
[1763590071155,0.68,135.22,135.21,61.7]
[1763590071645,6.14514328,135.22,135.21,61.7]
[1763590071851,0.68,135.22,135.21,61.7]
[1763590072224,5.46696994,135.23,135.21,61.7]
[1763590072423,18.12096,135.24,135.21,61.7]
[1763590072753,5.47241581,135.23,135.21,61.7]
[1763590073124,6.15241581,135.23,135.21,61.7]
[1763590074028,18.12096,135.25,135.21,61.7]
[1763590074224,0.68,135.22,135.21,61.7]
[1763590074429,18.80096,135.26,135.22,10.46882769]
[1763590074651,5.47785824,135.25,135.23,1.76]
[1763590075827,0.68,135.26,135.23,1.76]
[1763590076032,5.68140243,135.27,135.24,10.46882769]
[1763590076240,0.2,135.27,135.24,72.16882769]
[1763590076554,0.2,135.27,135.25,0.68]
[1763590076850,0.2,135.27,135.26,1.76]
[1763590078234,0.2,135.27,135.26,11.54882769]
[1763590080629,0.88,135.27,135.26,1.76]
[1763590080831,0.88,135.27,135.2,10.46882769]
[1763590081048,0.68,135.26,135.21,1.76]
[1763590081248,0.68,135.26,135.21,2.44]
[1763590081424,0.68,135.26,135.22,9.78882769]
[1763590081621,6.15344887,135.26,135.23,1.76]
[1763590081839,0.68,135.26,135.23,63.46]
[1763590082034,0.68,135.25,135.23,63.46]
[1763590082658,0.88,135.27,135.23,63.46]
[1763590083252,0.68,135.26,135.23,63.46]
[1763590083831,0.2,135.27,135.24,10.46882769]
[1763590084156,0.2,135.27,135.25,1.76]
[1763590085341,0.2,135.27,135.26,1.76]
[1763590086964,0.2,135.27,135.26,12.22882769]
[1763590087132,18.12096,135.26,135.24,61.7]
[1763590087336,18.12096,135.26,135.25,1.76]
[1763590087539,18.80096,135.26,135.25,1.76]
[1763590087734,0.68,135.26,135.25,1.76]
[1763590087935,18.80096,135.26,135.25,1.76]
[1763590088537,0.68,135.26,135.25,1.76]
[1763590088743,18.80096,135.26,135.25,1.76]
[1763590089538,18.12096,135.26,135.25,1.76]
[1763590089758,0.68,135.26,135.25,1.76]
[1763590090466,0.18,135.26,135.25,1.76]
[1763590091379,0.2,135.27,135.25,2.44]
[1763590091536,0.2,135.27,135.25,63.46]
[1763590091946,0.2,135.27,135.25,64.14]
[1763590092156,0.2,135.27,135.25,63.46]
[1763590092346,0.2,135.27,135.26,10.46882769]
[1763590092554,0.2,135.27,135.26,72.16882769]
[1763590093369,0.2,135.27,135.26,71.48882769]
[1763590093675,0.2,135.27,135.26,36.72227327]
[1763590093846,5.45434946,135.33,135.27,9.78882769]
[1763590094165,5.78757739,135.34,135.28,1.76]
[1763590094337,5.43829433,135.33,135.29,9.78882769]
[1763590094644,0.2,135.34,135.31,9.78882769]
[1763590094848,0.2,135.34,135.32,1.76]
[1763590095445,0.2,135.34,135.31,10.46882769]
[1763590095863,0.2,135.34,135.32,1.76]
[1763590096438,0.2,135.34,135.31,10.46882769]
[1763590096637,0.2,135.34,135.32,1.76]
[1763590097455,0.88,135.34,135.33,1.76]
[1763590097765,18.32096,135.34,135.33,1.76]
[1763590097949,19.00096,135.34,135.33,1.76]
[1763590098350,19.00096,135.34,135.25,7.3933995]
[1763590098351,0.88,135.34,135.32,1.76]
[1763590098551,18.12096,135.32,135.29,1.76]
[1763590098954,0.68,135.31,135.27,1.76]
[1763590099350,18.12096,135.3,135.27,1.76]
[1763590099763,0.68,135.29,135.27,1.76]
[1763590100450,18.79096,135.31,135.27,1.76]
[1763590100652,18.12096,135.31,135.27,1.76]
[1763590100854,0.67,135.3,135.27,1.76]
[1763590101061,5.57477735,135.3,135.26,1.76]
[1763590101550,0.67,135.29,135.26,1.76]
[1763590103854,6.10837975,135.29,135.26,1.76]
[1763590104050,11.01575394,135.29,135.26,1.76]
[1763590104251,0.67,135.28,135.26,1.76]
[1763590108379,0.67,135.28,135.23,71.48882769]
[1763590108577,0.67,135.28,135.24,1.76]
[1763590108880,6.11570719,135.28,135.24,1.76]
[1763590109274,0.67,135.27,135.24,1.76]
[1763590109870,18.12096,135.25,135.21,62.1]
[1763590110084,18.12096,135.25,135.22,1.76]
[1763590110258,0.67,135.27,135.23,0.69]
[1763590110455,0.67,135.27,135.23,10.47882769]
[1763590110876,18.12096,135.29,135.24,0.69]
[1763590111070,0.67,135.28,135.25,1.76]
[1763590111270,0.67,135.29,135.25,63.86]
[1763590111459,0.67,135.29,135.25,64.55]
[1763590112063,6.11660951,135.29,135.25,64.55]
[1763590112287,11.03137636,135.29,135.25,64.55]
[1763590112464,5.58476685,135.29,135.25,64.55]
[1763590113883,12.54817946,135.36,135.26,12.23882769]
[1763590113884,0.2,135.34,135.26,12.23882769]
[1763590114054,0.2,135.34,135.28,9.78882769]
[1763590114260,0.2,135.34,135.3,9.78882769]
[1763590114485,0.2,135.34,135.31,0.69]
[1763590114793,0.2,135.34,135.32,1.76]
[1763590114958,0.2,135.34,135.32,2.45]
[1763590116979,0.2,135.34,135.32,1.76]
[1763590117289,0.2,135.34,135.33,0.69]
[1763590117586,0.2,135.34,135.33,10.47882769]
[1763590118778,5.36849444,135.38,135.33,10.47882769]
[1763590118984,0.67,135.38,135.34,0.69]
[1763590119166,0.67,135.38,135.35,1.76]
[1763590119361,0.67,135.38,135.35,12.45582852]
[1763590119973,0.67,135.38,135.35,74.55582852]
[1763590120170,4.93519155,135.39,135.37,10.69582852]
[1763590120367,0.87,135.4,135.38,1.76]
[1763590120888,0.2,135.4,135.38,75.24582852]
[1763590121065,0.2,135.4,135.38,63.86]
[1763590121687,0.2,135.4,135.39,11.38582852]
[1763590121863,0.2,135.4,135.39,21.17465621]
[1763590122578,0.2,135.41,135.4,9.78882769]
[1763590122770,0.2,135.41,135.4,21.17465621]
[1763590123892,0.2,135.41,135.4,22.24465621]
[1763590124090,0.2,135.41,135.4,11.54882769]
[1763590124266,0.2,135.41,135.4,22.24465621]
[1763590127292,0.87,135.41,135.37,10.69582852]
[1763590127586,0.87,135.41,135.38,1.76]
[1763590127792,0.67,135.4,135.38,1.76]
[1763590128111,0.2,135.41,135.38,12.45582852]
[1763590128297,0.87,135.41,135.38,12.45582852]
[1763590128809,0.2,135.41,135.4,10.69582852]
[1763590129294,0.2,135.41,135.4,21.17465621]
[1763590130299,0.2,135.41,135.4,22.24465621]
[1763590130481,0.2,135.41,135.4,22.93465621]
[1763590130794,0.2,135.41,135.4,22.24465621]
[1763590132071,0.2,135.41,135.4,22.93465621]
[1763590132683,0.2,135.41,135.4,45.16465621]
[1763590132885,0.2,135.41,135.4,22.93465621]
[1763590133283,0.86,135.41,135.37,18.12096]
[1763590133482,0.2,135.41,135.39,10.69582852]
[1763590133699,0.86,135.41,135.39,10.69582852]
[1763590133997,0.86,135.41,135.39,9.78882769]
[1763590134205,0.66,135.4,135.39,9.78882769]
[1763590134395,0.2,135.41,135.39,9.78882769]
[1763590134396,0.86,135.41,135.39,9.78882769]
[1763590135281,0.86,135.41,135.4,1.76]
[1763590135486,0.86,135.41,135.4,63.86]
[1763590135906,0.86,135.41,135.4,62.1]
[1763590136077,0.86,135.41,135.4,63.86]
[1763590140419,0.2,135.41,135.4,63.86]
[1763590140593,0.86,135.41,135.4,63.86]
[1763590141316,0.2,135.41,135.4,63.86]
[1763590141840,0.86,135.41,135.4,62.1]
[1763590142030,0.86,135.41,135.39,1.76]
[1763590142321,0.86,135.41,135.36,1.76]
[1763590142322,18.78096,135.4,135.36,1.76]
[1763590142928,0.66,135.39,135.36,1.76]
[1763590144688,0.66,135.39,135.31,10.47882769]
[1763590144689,18.12096,135.37,135.31,1.76]
[1763590145092,0.66,135.36,135.31,1.76]
[1763590145498,18.12096,135.35,135.31,1.76]
[1763590145922,0.66,135.34,135.31,1.76]
[1763590147722,18.78096,135.34,135.31,1.76]
[1763590147886,18.78096,135.34,135.26,0.1]
[1763590148090,0.66,135.33,135.27,1.76]
[1763590148286,0.66,135.33,135.26,0.1]
[1763590148535,18.12096,135.29,135.26,0.1]
[1763590149012,0.66,135.28,135.26,0.1]
[1763590149186,18.12096,135.3,135.26,9.88882769]
[1763590149384,18.78096,135.3,135.26,10.57882769]
[1763590150392,18.12096,135.3,135.26,9.88882769]
[1763590150609,18.78096,135.3,135.26,9.88882769]
[1763590151012,18.78096,135.3,135.26,10.57882769]
[1763590151227,18.12096,135.3,135.27,0.69]
[1763590151392,18.12096,135.3,135.26,9.88882769]
[1763590151726,18.12096,135.3,135.26,0.1]
[1763590151727,18.78096,135.3,135.26,0.1]
[1763590151927,18.12096,135.3,135.27,1.76]
[1763590152327,0.66,135.32,135.27,2.45]
[1763590152896,0.66,135.32,135.27,1.76]
[1763590153136,18.12096,135.3,135.27,1.76]
[1763590153431,18.12096,135.3,135.26,0.1]
[1763590153599,0.66,135.31,135.26,0.1]
[1763590153799,18.12096,135.31,135.27,9.78882769]
[1763590153997,18.12096,135.31,135.26,0.79]
[1763590153998,18.78096,135.31,135.26,0.1]
[1763590154210,0.66,135.3,135.26,10.57882769]
[1763590155904,0.66,135.3,135.27,1.76]
[1763590156108,18.12096,135.31,135.27,1.76]
[1763590156330,0.66,135.31,135.27,1.76]
[1763590157439,18.12096,135.32,135.28,0.69]
[1763590157594,0.66,135.31,135.27,2.45]
[1763590158033,18.78096,135.33,135.28,0.69]
[1763590158204,0.66,135.32,135.27,1.76]
[1763590158710,0.66,135.32,135.27,2.45]
[1763590159540,0.66,135.35,135.28,10.47882769]
[1763590159754,0.66,135.35,135.28,72.57882769]
[1763590160047,0.66,135.35,135.29,0.7]
[1763590160216,0.66,135.35,135.31,9.78882769]
[1763590160649,18.12096,135.36,135.32,0.7]
[1763590160834,0.69,135.37,135.33,1.76]
[1763590161042,18.81096,135.36,135.33,1.76]
[1763590161349,0.69,135.35,135.33,1.76]
[1763590162123,18.12096,135.37,135.33,1.76]
[1763590162520,0.69,135.36,135.33,1.76]
[1763590163739,18.12096,135.37,135.33,2.46]
[1763590163915,18.12096,135.39,135.33,2.46]
[1763590164121,0.69,135.37,135.33,2.46]
[1763590164423,0.69,135.37,135.33,1.76]
[1763590166824,18.12096,135.35,135.33,1.76]
[1763590167034,18.12096,135.35,135.33,63.86]
[1763590167235,0.69,135.34,135.33,63.86]
[1763590167839,0.69,135.34,135.31,9.78882769]
[1763590167840,18.81096,135.34,135.31,62.1]
[1763590168051,0.69,135.34,135.31,63.86]
[1763590168349,0.69,135.33,135.29,62.1]
[1763590168525,18.12096,135.32,135.27,62.1]
[1763590168843,18.12096,135.32,135.28,1.76]
[1763590169050,0.69,135.31,135.28,1.76]
[1763590169218,18.12096,135.3,135.28,1.76]
[1763590169635,18.81096,135.3,135.28,1.76]
[1763590169841,0.69,135.3,135.28,1.76]
[1763590170819,0.69,135.32,135.28,1.76]
[1763590171644,18.12096,135.3,135.28,1.76]
[1763590172131,0.69,135.3,135.28,1.76]
[1763590172634,18.12096,135.29,135.26,1.86]
[1763590173027,0.69,135.28,135.26,1.86]
[1763590173234,18.12096,135.27,135.26,1.86]
[1763590173743,0.69,135.27,135.26,1.86]
[1763590174127,0.69,135.27,135.26,0.1]
[1763590175069,18.81096,135.27,135.26,0.1]
[1763590176130,0.69,135.27,135.26,0.1]
[1763590176341,18.12096,135.27,135.26,0.1]
[1763590177261,18.81096,135.27,135.26,0.1]
[1763590177643,18.12096,135.27,135.26,0.1]
[1763590177959,0.69,135.27,135.26,0.1]
[1763590178130,18.81096,135.27,135.26,0.1]
[1763590178337,0.69,135.27,135.26,62.2]
[1763590178545,18.81096,135.27,135.26,62.2]
[1763590180875,18.12096,135.27,135.26,62.2]
[1763590181164,0.69,135.31,135.26,64.67]
[1763590181343,18.12096,135.3,135.27,0.71]
[1763590181541,18.12096,135.3,135.27,62.81]
[1763590182053,18.12096,135.3,135.27,62.1]
[1763590182262,0.69,135.31,135.27,62.81]
[1763590182553,18.81096,135.31,135.27,62.81]
[1763590182957,0.69,135.3,135.27,62.1]
[1763590183154,18.81096,135.31,135.27,62.81]
[1763590183351,18.12096,135.31,135.28,0.71]
[1763590183558,0.69,135.33,135.29,1.76]
[1763590183755,18.12096,135.31,135.29,63.86]
[1763590184551,18.12096,135.32,135.29,63.86]
[1763590184763,10.32879895,135.31,135.29,63.86]
[1763590185072,4.91360171,135.31,135.29,63.86]
[1763590185254,0.69,135.3,135.29,1.76]
[1763590185455,29.14111022,135.3,135.26,0.1]
[1763590185636,10.33015022,135.29,135.26,0.1]
[1763590185842,0.69,135.3,135.27,1.76]
[1763590186163,18.12096,135.27,135.26,0.1]
[1763590186845,0.69,135.29,135.26,0.1]
[1763590187038,18.12096,135.27,135.26,0.1]
[1763590187447,23.54582794,135.27,135.26,0.1]
[1763590187742,28.47106674,135.27,135.26,0.1]
[1763590190374,28.47836563,135.27,135.26,0.1]
[1763590194553,28.4960678,135.27,135.26,0.1]
[1763590196273,23.05186022,135.27,135.26,62.2]
[1763590196471,18.81096,135.28,135.26,62.2]
[1763590199280,18.84096,135.29,135.26,62.2]
[1763590199470,5.44470287,135.28,135.26,62.2]
[1763590199670,18.84096,135.29,135.26,62.87]
[1763590200177,18.12096,135.29,135.26,62.87]
[1763590200382,18.12096,135.29,135.27,0.67]
[1763590200692,18.84096,135.29,135.28,1.76]
[1763590200878,24.28647075,135.29,135.28,1.76]
[1763590201085,29.22714939,135.29,135.28,1.76]
[1763590204370,28.50714939,135.29,135.28,1.76]
[1763590204674,28.50714939,135.29,135.26,62.2]
[1763590204675,35.39077467,135.29,135.26,0.1]
[1763590204987,11.10618939,135.28,135.26,0.1]
[1763590205190,10.38618939,135.27,135.26,0.1]
[1763590205366,11.10618939,135.27,135.26,0.1]
[1763590205566,6.16551075,135.27,135.26,0.1]
[1763590205768,11.10618939,135.27,135.26,0.1]
[1763590206376,12.86618939,135.27,135.26,0.1]
[1763590207576,12.86618939,135.27,135.21,1.76]
[1763590207577,18.12096,135.24,135.21,1.76]
[1763590207774,10.38618939,135.23,135.21,1.76]
[1763590208081,5.44551075,135.22,135.21,1.76]
[1763590208281,6.16551075,135.22,135.21,1.76]
[1763590209477,6.16551075,135.22,135.16,72.55882769]
[1763590209677,18.12096,135.19,135.16,0.67]
[1763590209995,18.12096,135.19,135.17,2.43]
[1763590210367,18.12096,135.19,135.17,1.76]
[1763590210587,18.12096,135.22,135.18,0.67]
[1763590211382,18.84096,135.23,135.18,0.67]
[1763590211584,10.40400737,135.22,135.18,0.67]
[1763590211801,4.94858309,135.22,135.18,62.77]
[1763590212099,18.12096,135.24,135.19,9.78882769]
[1763590212294,18.12096,135.24,135.2,1.76]
[1763590212492,18.84096,135.24,135.2,2.43]
[1763590212672,6.18231203,135.28,135.21,0.67]
[1763590212874,10.4079384,135.27,135.21,0.67]
[1763590213076,5.45734658,135.26,135.21,62.77]
[1763590213282,10.4079384,135.26,135.21,62.77]
[1763590213497,5.45734658,135.25,135.22,0.67]
[1763590213690,5.45734658,135.25,135.23,1.76]
[1763590214402,5.45734658,135.25,135.23,2.43]
[1763590214696,4.95059182,135.26,135.23,2.43]
[1763590214902,5.46285442,135.25,135.23,2.43]
[1763590215486,6.18285442,135.25,135.23,1.76]
[1763590215688,5.46285442,135.25,135.23,1.76]
[1763590215887,5.67059182,135.27,135.23,1.76]
[1763590215888,18.12096,135.24,135.23,2.43]
[1763590217303,18.12096,135.24,135.23,1.76]
[1763590217706,18.12096,135.24,135.23,2.43]
[1763590217891,18.12096,135.26,135.23,2.43]
[1763590218497,0.72,135.27,135.23,2.43]
[1763590218706,23.58410425,135.26,135.23,2.43]
[1763590218892,10.41437718,135.25,135.23,2.43]
[1763590219082,5.46080144,135.24,135.23,2.43]
[1763590219782,4.95357574,135.25,135.23,2.43]
[1763590219980,4.95357574,135.25,135.23,64.53]
[1763590220590,18.12096,135.26,135.23,64.53]
[1763590220906,18.78096,135.26,135.23,64.53]
[1763590221109,18.12096,135.24,135.23,62.1]
[1763590221293,28.52571871,135.24,135.23,62.1]
[1763590222286,29.18571871,135.24,135.23,62.1]
[1763590224228,28.52571871,135.24,135.23,62.1]
[1763590225907,28.52571871,135.24,135.21,64.56]
[1763590226109,18.78096,135.25,135.21,64.56]
[1763590226317,10.44252447,135.24,135.21,64.56]
[1763590226490,23.06758661,135.24,135.21,64.56]
[1763590226686,18.12096,135.24,135.21,64.56]
[1763590226919,18.12096,135.24,135.22,0.66]
[1763590228304,18.12096,135.25,135.22,0.66]
[1763590228708,18.12096,135.25,135.22,62.76]
[1763590228932,18.12096,135.26,135.22,62.76]
[1763590229130,5.50234558,135.25,135.23,0.66]
[1763590229425,10.45529873,135.24,135.22,63.86]
[1763590229628,5.50234558,135.23,135.22,63.86]
[1763590230397,6.87231203,135.27,135.22,64.52]
[1763590230747,6.87231203,135.27,135.23,0.66]
[1763590230748,11.14641786,135.26,135.23,0.66]
[1763590231017,10.45641786,135.25,135.22,64.52]
[1763590231319,5.5033266,135.24,135.22,64.52]
[1763590234654,5.5033266,135.23,135.22,64.52]
[1763590235028,6.1933266,135.23,135.22,62.1]
[1763590235227,11.14641786,135.23,135.22,62.1]
[1763590237962,10.45641786,135.23,135.22,62.1]
[1763590239734,11.14641786,135.23,135.22,62.1]
[1763590240057,17.32872989,135.23,135.18,0.66]
[1763590240235,17.32872989,135.22,135.18,1.76]
[1763590240436,10.45641786,135.21,135.18,1.76]
[1763590240764,5.5033266,135.2,135.19,0.66]
[1763590242638,4.95309126,135.22,135.19,0.66]
[1763590242969,5.49833672,135.21,135.19,0.66]
[1763590243568,0.69,135.2,135.17,62.1]
[1763590243765,10.45142798,135.19,135.17,62.1]
[1763590244069,5.49593334,135.18,135.16,1.76]
[1763590244275,5.49593334,135.17,135.16,1.76]
[1763590244436,5.49593334,135.17,135.13,0.66]
[1763590244630,24.30478112,135.16,135.14,1.76]
[1763590244934,10.43380273,135.15,135.12,1.86]
[1763590245157,5.4916072,135.14,135.12,1.86]
[1763590245343,5.63219553,135.15,135.12,1.86]
[1763590245763,18.12096,135.16,135.13,0.66]
[1763590246352,18.81096,135.16,135.13,0.66]
[1763590247459,18.12096,135.17,135.13,0.66]
[1763590247839,18.81096,135.17,135.13,0.66]
[1763590248748,0.69,135.16,135.13,0.66]
[1763590249868,18.12096,135.17,135.13,0.66]
[1763590250166,18.81096,135.17,135.13,0.66]
[1763590251650,18.12096,135.17,135.13,0.66]
[1763590252565,0.69,135.18,135.13,62.76]
[1763590252767,6.16860151,135.18,135.13,62.76]
[1763590253079,0.69,135.21,135.14,0.7]
[1763590253329,18.12096,135.19,135.14,0.7]
[1763590253854,18.81096,135.19,135.14,0.7]
[1763590255368,0.69,135.19,135.14,0.7]
[1763590255568,18.12096,135.21,135.15,9.78882769]
[1763590255569,10.40249921,135.2,135.15,9.78882769]
[1763590255876,5.61741613,135.2,135.16,1.76]
[1763590256047,18.12096,135.19,135.16,64.56]
[1763590256251,18.12096,135.19,135.17,0.7]
[1763590256450,18.12096,135.19,135.16,64.56]
[1763590256674,18.12096,135.19,135.16,63.86]
[1763590256975,18.12096,135.19,135.17,0.7]
[1763590257882,18.12096,135.19,135.16,64.56]
[1763590260294,18.12096,135.19,135.17,0.7]
[1763590261393,18.12096,135.19,135.16,64.56]
[1763590261560,0.69,135.2,135.17,0.7]
[1763590261760,18.81096,135.2,135.17,0.7]
[1763590262081,0.69,135.19,135.16,62.1]
[1763590262396,11.07870268,135.19,135.16,62.1]
[1763590262595,23.58887815,135.18,135.13,62.1]
[1763590262768,10.39059203,135.17,135.12,62.2]
[1763590262967,5.46791815,135.16,135.12,0.1]
[1763590263284,11.08059203,135.16,135.12,0.1]
[1763590263598,18.12096,135.14,135.12,0.1]
[1763590263900,18.81096,135.15,135.12,0.1]
[1763590264389,0.69,135.14,135.12,0.1]
[1763590264962,0.69,135.16,135.12,0.1]
[1763590265172,0.69,135.16,135.13,2.46]
[1763590265983,18.12096,135.18,135.13,2.46]
[1763590266172,10.41434285,135.17,135.13,2.46]
[1763590266496,5.62305837,135.17,135.13,2.46]
[1763590266793,0.69,135.2,135.14,0.7]
[1763590267173,18.12096,135.17,135.12,0.1]
[1763590267381,10.41297832,135.16,135.12,0.1]
[1763590267593,4.93241467,135.16,135.12,0.8]
[1763590267760,18.12096,135.17,135.13,9.78882769]
[1763590268091,18.81096,135.18,135.13,9.78882769]
[1763590268333,18.12096,135.18,135.14,0.7]
[1763590268465,0.69,135.2,135.14,0.7]
[1763590268669,18.12096,135.18,135.14,62.8]
[1763590269006,0.69,135.2,135.15,1.76]
[1763590269165,18.12096,135.18,135.15,1.76]
[1763590269581,18.12096,135.18,135.15,2.46]
[1763590270165,0.69,135.21,135.16,0.7]
[1763590270660,24.29654088,135.21,135.16,0.7]
[1763590270893,10.42219397,135.2,135.16,0.7]
[1763590271082,4.93661309,135.2,135.16,62.8]
[1763590271474,4.93661309,135.2,135.17,0.7]
[1763590271685,4.93661309,135.2,135.16,62.1]
[1763590271891,0.69,135.19,135.16,62.1]
[1763590272321,0.69,135.19,135.16,62.8]
[1763590272493,5.62661309,135.2,135.16,62.8]
[1763590273319,5.49007716,135.19,135.16,62.8]
[1763590273497,5.49007716,135.19,135.16,62.1]
[1763590273820,5.49007716,135.19,135.17,0.7]
[1763590274000,4.93661309,135.2,135.18,1.76]
[1763590274518,4.93661309,135.2,135.19,0.7]
[1763590274817,5.63276733,135.23,135.19,62.8]
[1763590275025,5.4900367,135.22,135.19,62.8]
[1763590275195,5.63276733,135.24,135.2,9.78882769]
[1763590275515,6.17820232,135.23,135.21,1.76]
[1763590275715,5.48880351,135.22,135.21,1.76]
[1763590275892,0.69,135.22,135.21,1.76]
[1763590276093,11.12157084,135.22,135.19,63.86]
[1763590276319,5.48880351,135.21,135.19,63.86]
[1763590276518,6.17880351,135.21,135.19,63.86]
[1763590276822,0.69,135.2,135.19,63.86]
[1763590277396,6.17880351,135.2,135.19,63.86]
[1763590278296,11.12157084,135.2,135.19,1.76]
[1763590278612,29.24253084,135.2,135.15,1.76]
[1763590278806,29.24253084,135.2,135.12,71.98882769]
[1763590278807,11.12157084,135.19,135.14,1.76]
[1763590279008,5.48880351,135.18,135.14,1.76]
[1763590279314,11.12157084,135.18,135.14,1.76]
[1763590279513,5.48880351,135.17,135.14,2.46]
[1763590279700,0.69,135.18,135.14,2.46]
[1763590279701,5.63276733,135.18,135.14,2.46]
[1763590279911,5.50166295,135.17,135.14,2.46]
[1763590280109,5.63276733,135.18,135.14,2.46]
[1763590280319,5.50324649,135.17,135.14,2.46]
[1763590281004,5.50324649,135.17,135.14,2.48]
[1763590281521,6.18324649,135.17,135.14,1.76]
[1763590281832,5.50324649,135.17,135.14,2.48]
[1763590282120,10.44601382,135.17,135.14,2.48]
[1763590282299,5.62276733,135.17,135.14,2.48]
[1763590282495,0.68,135.17,135.14,2.48]
[1763590283011,11.12845544,135.17,135.14,1.76]
[1763590283211,5.50568811,135.16,135.14,1.76]
[1763590283396,6.18568811,135.16,135.14,1.76]
[1763590283594,0.68,135.16,135.14,1.76]
[1763590283797,4.94276733,135.17,135.12,0.1]
[1763590283798,11.13278101,135.15,135.12,0.1]
[1763590283996,10.45185698,135.14,135.12,0.1]
[1763590284206,5.50971398,135.13,135.12,0.1]
[1763590285795,4.94276733,135.14,135.12,10.60882769]
[1763590286014,4.94276733,135.16,135.13,9.78882769]
[1763590286211,4.94276733,135.17,135.14,1.76]
[1763590286407,10.45976953,135.16,135.14,2.45]
[1763590286607,4.94276733,135.18,135.15,0.69]
[1763590286915,10.45977607,135.17,135.15,0.69]
[1763590287122,10.45977607,135.16,135.15,0.69]